{"text_format":"1","workbook":"xlsx","n_sheets":1,"sheets":["ATIVOS (AÇÕES)"],"not_rendered":{"charts":0,"images":0,"macros":0,"external_links":0,"defined_names":33,"comments":0,"pivot_tables":0},"unopened":[],"bounds":{"document_bytes":16777216,"sheet_cells":100000,"rows_first":2000,"rows_last":500,"rows_between":2000,"halvings":0,"cell_chars":16384,"cell_head_chars":4096},"cells_cut":0,"cells_raw":0,"read":"whole","date_system":"1900"}

{"sheet":"ATIVOS (AÇÕES)","index":0,"n_rows":31,"n_cols":20,"rows_kept":31,"cut":false,"hidden":false,"merged":[[5,3,6,4],[5,9,6,10]]}
[]
[]
[null,"Carteira de Ações"]
[]
[]
[null,null,null,"Como está atualmente",null,null,null,null,null,"Como gostaria que retornasse"]
[]
[]
[]
[null,"Carteira Atual",null,{"$f":"PlanAtivos_AtivosUnicos","v":5},null,null,null,"Carteira Atual",null,3]
[null,"Ativo","Qtde (Lotes)","Lote 1","Valor Menor",null,null,"Ativo","Qtde (Lotes)","Lote 1","Valor Menor"]
[null,{"$f":"IFERROR(IF(INDEX(TB_MovimentaçãodeAtivos[Ativo],MATCH(0,COUNTIF(TB_MovimentaçãodeAtivos[Ativo],\"<\"&TB_MovimentaçãodeAtivos[Ativo])-SUM(COUNTIF(TB_MovimentaçãodeAtivos[Ativo],$B$11:B11)),0))=0,\"\",INDEX(TB_MovimentaçãodeAtivos[Ativo],MATCH(0,COUNTIF(TB_MovimentaçãodeAtivos[Ativo],\"<\"&TB_MovimentaçãodeAtivos[Ativo])-SUM(COUNTIF(TB_MovimentaçãodeAtivos[Ativo],$B$11:B11)),0))),\"\")","v":"CIEL3"},{"$f":"COUNTIF(TB_MovimentaçãodeAtivos[Ativo],TB_CarteiraAtual[[#This Row],[Ativo]])","v":3},{"$f":"IFERROR(INDEX(TB_MovimentaçãodeAtivos[Qtde],MATCH(MAX(IF(TB_MovimentaçãodeAtivos[Ativo]=TB_CarteiraAtual[[#This Row],[Ativo]],IF(TB_MovimentaçãodeAtivos[Vlr Entrada]=TB_CarteiraAtual[[#This Row],[Valor Menor]],TB_MovimentaçãodeAtivos[Qtde]))),TB_MovimentaçãodeAtivos[Qtde],0)),0)","v":0},{"$f":"IFERROR(INDEX(TB_MovimentaçãodeAtivos[Vlr Entrada],MATCH(MIN(IF(TB_MovimentaçãodeAtivos[Ativo]=TB_CarteiraAtual[[#This Row],[Ativo]],TB_MovimentaçãodeAtivos[Vlr Entrada])),TB_MovimentaçãodeAtivos[Vlr Entrada],0)),0)","v":0},null,null,"CIEL3",2,500,3.56]
[null,{"$f":"IFERROR(IF(INDEX(TB_MovimentaçãodeAtivos[Ativo],MATCH(0,COUNTIF(TB_MovimentaçãodeAtivos[Ativo],\"<\"&TB_MovimentaçãodeAtivos[Ativo])-SUM(COUNTIF(TB_MovimentaçãodeAtivos[Ativo],$B$11:B12)),0))=0,\"\",INDEX(TB_MovimentaçãodeAtivos[Ativo],MATCH(0,COUNTIF(TB_MovimentaçãodeAtivos[Ativo],\"<\"&TB_MovimentaçãodeAtivos[Ativo])-SUM(COUNTIF(TB_MovimentaçãodeAtivos[Ativo],$B$11:B12)),0))),\"\")","v":"IRBR3"},{"$f":"COUNTIF(TB_MovimentaçãodeAtivos[Ativo],TB_CarteiraAtual[[#This Row],[Ativo]])","v":1},{"$f":"IFERROR(INDEX(TB_MovimentaçãodeAtivos[Qtde],MATCH(MAX(IF(TB_MovimentaçãodeAtivos[Ativo]=TB_CarteiraAtual[[#This Row],[Ativo]],IF(TB_MovimentaçãodeAtivos[Vlr Entrada]=TB_CarteiraAtual[[#This Row],[Valor Menor]],TB_MovimentaçãodeAtivos[Qtde]))),TB_MovimentaçãodeAtivos[Qtde],0)),0)","v":0},{"$f":"IFERROR(INDEX(TB_MovimentaçãodeAtivos[Vlr Entrada],MATCH(MIN(IF(TB_MovimentaçãodeAtivos[Ativo]=TB_CarteiraAtual[[#This Row],[Ativo]],TB_MovimentaçãodeAtivos[Vlr Entrada])),TB_MovimentaçãodeAtivos[Vlr Entrada],0)),0)","v":0},null,null,"PETR4",1,200,24.8]
[null,{"$f":"IFERROR(IF(INDEX(TB_MovimentaçãodeAtivos[Ativo],MATCH(0,COUNTIF(TB_MovimentaçãodeAtivos[Ativo],\"<\"&TB_MovimentaçãodeAtivos[Ativo])-SUM(COUNTIF(TB_MovimentaçãodeAtivos[Ativo],$B$11:B13)),0))=0,\"\",INDEX(TB_MovimentaçãodeAtivos[Ativo],MATCH(0,COUNTIF(TB_MovimentaçãodeAtivos[Ativo],\"<\"&TB_MovimentaçãodeAtivos[Ativo])-SUM(COUNTIF(TB_MovimentaçãodeAtivos[Ativo],$B$11:B13)),0))),\"\")","v":"NTCO2"},{"$f":"COUNTIF(TB_MovimentaçãodeAtivos[Ativo],TB_CarteiraAtual[[#This Row],[Ativo]])","v":2},{"$f":"IFERROR(INDEX(TB_MovimentaçãodeAtivos[Qtde],MATCH(MAX(IF(TB_MovimentaçãodeAtivos[Ativo]=TB_CarteiraAtual[[#This Row],[Ativo]],IF(TB_MovimentaçãodeAtivos[Vlr Entrada]=TB_CarteiraAtual[[#This Row],[Valor Menor]],TB_MovimentaçãodeAtivos[Qtde]))),TB_MovimentaçãodeAtivos[Qtde],0)),0)","v":0},{"$f":"IFERROR(INDEX(TB_MovimentaçãodeAtivos[Vlr Entrada],MATCH(MIN(IF(TB_MovimentaçãodeAtivos[Ativo]=TB_CarteiraAtual[[#This Row],[Ativo]],TB_MovimentaçãodeAtivos[Vlr Entrada])),TB_MovimentaçãodeAtivos[Vlr Entrada],0)),0)","v":0},null,null,"VIVA3",1,300,25.9]
[null,{"$f":"IFERROR(IF(INDEX(TB_MovimentaçãodeAtivos[Ativo],MATCH(0,COUNTIF(TB_MovimentaçãodeAtivos[Ativo],\"<\"&TB_MovimentaçãodeAtivos[Ativo])-SUM(COUNTIF(TB_MovimentaçãodeAtivos[Ativo],$B$11:B14)),0))=0,\"\",INDEX(TB_MovimentaçãodeAtivos[Ativo],MATCH(0,COUNTIF(TB_MovimentaçãodeAtivos[Ativo],\"<\"&TB_MovimentaçãodeAtivos[Ativo])-SUM(COUNTIF(TB_MovimentaçãodeAtivos[Ativo],$B$11:B14)),0))),\"\")","v":"PETR4"},{"$f":"COUNTIF(TB_MovimentaçãodeAtivos[Ativo],TB_CarteiraAtual[[#This Row],[Ativo]])","v":2},{"$f":"IFERROR(INDEX(TB_MovimentaçãodeAtivos[Qtde],MATCH(MAX(IF(TB_MovimentaçãodeAtivos[Ativo]=TB_CarteiraAtual[[#This Row],[Ativo]],IF(TB_MovimentaçãodeAtivos[Vlr Entrada]=TB_CarteiraAtual[[#This Row],[Valor Menor]],TB_MovimentaçãodeAtivos[Qtde]))),TB_MovimentaçãodeAtivos[Qtde],0)),0)","v":0},{"$f":"IFERROR(INDEX(TB_MovimentaçãodeAtivos[Vlr Entrada],MATCH(MIN(IF(TB_MovimentaçãodeAtivos[Ativo]=TB_CarteiraAtual[[#This Row],[Ativo]],TB_MovimentaçãodeAtivos[Vlr Entrada])),TB_MovimentaçãodeAtivos[Vlr Entrada],0)),0)","v":0}]
[null,{"$f":"IFERROR(IF(INDEX(TB_MovimentaçãodeAtivos[Ativo],MATCH(0,COUNTIF(TB_MovimentaçãodeAtivos[Ativo],\"<\"&TB_MovimentaçãodeAtivos[Ativo])-SUM(COUNTIF(TB_MovimentaçãodeAtivos[Ativo],$B$11:B15)),0))=0,\"\",INDEX(TB_MovimentaçãodeAtivos[Ativo],MATCH(0,COUNTIF(TB_MovimentaçãodeAtivos[Ativo],\"<\"&TB_MovimentaçãodeAtivos[Ativo])-SUM(COUNTIF(TB_MovimentaçãodeAtivos[Ativo],$B$11:B15)),0))),\"\")","v":"VIVA3"},{"$f":"COUNTIF(TB_MovimentaçãodeAtivos[Ativo],TB_CarteiraAtual[[#This Row],[Ativo]])","v":1},{"$f":"IFERROR(INDEX(TB_MovimentaçãodeAtivos[Qtde],MATCH(MAX(IF(TB_MovimentaçãodeAtivos[Ativo]=TB_CarteiraAtual[[#This Row],[Ativo]],IF(TB_MovimentaçãodeAtivos[Vlr Entrada]=TB_CarteiraAtual[[#This Row],[Valor Menor]],TB_MovimentaçãodeAtivos[Qtde]))),TB_MovimentaçãodeAtivos[Qtde],0)),0)","v":0},{"$f":"IFERROR(INDEX(TB_MovimentaçãodeAtivos[Vlr Entrada],MATCH(MIN(IF(TB_MovimentaçãodeAtivos[Ativo]=TB_CarteiraAtual[[#This Row],[Ativo]],TB_MovimentaçãodeAtivos[Vlr Entrada])),TB_MovimentaçãodeAtivos[Vlr Entrada],0)),0)","v":0}]
[null,{"$f":"IFERROR(IF(INDEX(TB_MovimentaçãodeAtivos[Ativo],MATCH(0,COUNTIF(TB_MovimentaçãodeAtivos[Ativo],\"<\"&TB_MovimentaçãodeAtivos[Ativo])-SUM(COUNTIF(TB_MovimentaçãodeAtivos[Ativo],$B$11:B16)),0))=0,\"\",INDEX(TB_MovimentaçãodeAtivos[Ativo],MATCH(0,COUNTIF(TB_MovimentaçãodeAtivos[Ativo],\"<\"&TB_MovimentaçãodeAtivos[Ativo])-SUM(COUNTIF(TB_MovimentaçãodeAtivos[Ativo],$B$11:B16)),0))),\"\")","v":""},{"$f":"COUNTIF(TB_MovimentaçãodeAtivos[Ativo],TB_CarteiraAtual[[#This Row],[Ativo]])","v":0},{"$f":"IFERROR(INDEX(TB_MovimentaçãodeAtivos[Qtde],MATCH(MAX(IF(TB_MovimentaçãodeAtivos[Ativo]=TB_CarteiraAtual[[#This Row],[Ativo]],IF(TB_MovimentaçãodeAtivos[Vlr Entrada]=TB_CarteiraAtual[[#This Row],[Valor Menor]],TB_MovimentaçãodeAtivos[Qtde]))),TB_MovimentaçãodeAtivos[Qtde],0)),0)","v":0},{"$f":"IFERROR(INDEX(TB_MovimentaçãodeAtivos[Vlr Entrada],MATCH(MIN(IF(TB_MovimentaçãodeAtivos[Ativo]=TB_CarteiraAtual[[#This Row],[Ativo]],TB_MovimentaçãodeAtivos[Vlr Entrada])),TB_MovimentaçãodeAtivos[Vlr Entrada],0)),0)","v":0}]
[null,{"$f":"IFERROR(IF(INDEX(TB_MovimentaçãodeAtivos[Ativo],MATCH(0,COUNTIF(TB_MovimentaçãodeAtivos[Ativo],\"<\"&TB_MovimentaçãodeAtivos[Ativo])-SUM(COUNTIF(TB_MovimentaçãodeAtivos[Ativo],$B$11:B17)),0))=0,\"\",INDEX(TB_MovimentaçãodeAtivos[Ativo],MATCH(0,COUNTIF(TB_MovimentaçãodeAtivos[Ativo],\"<\"&TB_MovimentaçãodeAtivos[Ativo])-SUM(COUNTIF(TB_MovimentaçãodeAtivos[Ativo],$B$11:B17)),0))),\"\")","v":""},{"$f":"COUNTIF(TB_MovimentaçãodeAtivos[Ativo],TB_CarteiraAtual[[#This Row],[Ativo]])","v":0},{"$f":"IFERROR(INDEX(TB_MovimentaçãodeAtivos[Qtde],MATCH(MAX(IF(TB_MovimentaçãodeAtivos[Ativo]=TB_CarteiraAtual[[#This Row],[Ativo]],IF(TB_MovimentaçãodeAtivos[Vlr Entrada]=TB_CarteiraAtual[[#This Row],[Valor Menor]],TB_MovimentaçãodeAtivos[Qtde]))),TB_MovimentaçãodeAtivos[Qtde],0)),0)","v":0},{"$f":"IFERROR(INDEX(TB_MovimentaçãodeAtivos[Vlr Entrada],MATCH(MIN(IF(TB_MovimentaçãodeAtivos[Ativo]=TB_CarteiraAtual[[#This Row],[Ativo]],TB_MovimentaçãodeAtivos[Vlr Entrada])),TB_MovimentaçãodeAtivos[Vlr Entrada],0)),0)","v":0}]
[null,{"$f":"IFERROR(IF(INDEX(TB_MovimentaçãodeAtivos[Ativo],MATCH(0,COUNTIF(TB_MovimentaçãodeAtivos[Ativo],\"<\"&TB_MovimentaçãodeAtivos[Ativo])-SUM(COUNTIF(TB_MovimentaçãodeAtivos[Ativo],$B$11:B18)),0))=0,\"\",INDEX(TB_MovimentaçãodeAtivos[Ativo],MATCH(0,COUNTIF(TB_MovimentaçãodeAtivos[Ativo],\"<\"&TB_MovimentaçãodeAtivos[Ativo])-SUM(COUNTIF(TB_MovimentaçãodeAtivos[Ativo],$B$11:B18)),0))),\"\")","v":""},{"$f":"COUNTIF(TB_MovimentaçãodeAtivos[Ativo],TB_CarteiraAtual[[#This Row],[Ativo]])","v":0},{"$f":"IFERROR(INDEX(TB_MovimentaçãodeAtivos[Qtde],MATCH(MAX(IF(TB_MovimentaçãodeAtivos[Ativo]=TB_CarteiraAtual[[#This Row],[Ativo]],IF(TB_MovimentaçãodeAtivos[Vlr Entrada]=TB_CarteiraAtual[[#This Row],[Valor Menor]],TB_MovimentaçãodeAtivos[Qtde]))),TB_MovimentaçãodeAtivos[Qtde],0)),0)","v":0},{"$f":"IFERROR(INDEX(TB_MovimentaçãodeAtivos[Vlr Entrada],MATCH(MIN(IF(TB_MovimentaçãodeAtivos[Ativo]=TB_CarteiraAtual[[#This Row],[Ativo]],TB_MovimentaçãodeAtivos[Vlr Entrada])),TB_MovimentaçãodeAtivos[Vlr Entrada],0)),0)","v":0}]
[]
[null,"Qtde de Ativos Únicos:",null,{"$f":"SUM(IFERROR(1/COUNTIF(TB_MovimentaçãodeAtivos[Ativo],TB_MovimentaçãodeAtivos[Ativo]),0))","v":5}]
[null,"ID","Data","Ativo","C / V","Qtde","Vlr Entrada","Custo (E)","Total","Estratégia","Alvo","Loss Máx.","Data - Saída","Valor - Saída","Custo (S)","Total (S)","Resultado (%)","Resultado ($)","Tempo de Operação","Coluna1"]
[null,{"$f":"IFERROR(INDEX(#REF!,SMALL(IF(((#REF!=\"Pago\")*(#REF!=#REF!)*(#REF!=AnoReferencia_Matriz)),ROW(#REF!)-ROW(#REF!)),ROWS($1:1))),\"\")","v":""},44166,"PETR4","C",300,25.64,2.9,{"$f":"TB_MovimentaçãodeAtivos[[#This Row],[Qtde]]*TB_MovimentaçãodeAtivos[[#This Row],[Vlr Entrada]]","v":7692},null,{"$f":"TB_MovimentaçãodeAtivos[[#This Row],[Vlr Entrada]]*1.05","v":26.922000000000001},{"$f":"TB_MovimentaçãodeAtivos[[#This Row],[Vlr Entrada]]*0.95","v":24.358000000000001},44168,26.2,null,{"$f":"TB_MovimentaçãodeAtivos[[#This Row],[Qtde]]*TB_MovimentaçãodeAtivos[[#This Row],[Valor - Saída]]","v":7860},null,null,{"$f":"IF(OR(TB_MovimentaçãodeAtivos[[#This Row],[Data]]=\"\",TB_MovimentaçãodeAtivos[[#This Row],[Data]]=\"-\"),\"-\",IF(TB_MovimentaçãodeAtivos[[#This Row],[Data - Saída]]=TB_MovimentaçãodeAtivos[[#This Row],[Data]],\"-\",IFERROR(IF(DATEDIF(TB_MovimentaçãodeAtivos[[#This Row],[Data]],TB_MovimentaçãodeAtivos[[#This Row],[Data - Saída]],\"y\")=0,\"\",DATEDIF(TB_MovimentaçãodeAtivos[[#This Row],[Data]],TB_MovimentaçãodeAtivos[[#This Row],[Data - Saída]],\"y\")&\" \"&IF(DATEDIF(TB_MovimentaçãodeAtivos[[#This Row],[Data]],TB_MovimentaçãodeAtivos[[#This Row],[Data - Saída]],\"y\")>1,\"anos\",\"ano\"))&IF(AND(DATEDIF(TB_MovimentaçãodeAtivos[[#This Row],[Data]],TB_MovimentaçãodeAtivos[[#This Row],[Data - Saída]],\"y\")>0,DATEDIF(TB_MovimentaçãodeAtivos[[#This Row],[Data]],TB_MovimentaçãodeAtivos[[#This Row],[Data - Saída]],\"ym\")>0),IF(DATEDIF(TB_MovimentaçãodeAtivos[[#This Row],[Data]],TB_MovimentaçãodeAtivos[[#This Row],[Data - Saída]],\"md\")>0,\", \",\" e \"),\"\")&IF(DATEDIF(TB_MovimentaçãodeAtivos[[#This Row],[Data]],TB_MovimentaçãodeAtivos[[#This Row],[Data - Saída]],\"ym\")=0,\"\",DATEDIF(TB_MovimentaçãodeAtivos[[#This Row],[Data]],TB_MovimentaçãodeAtivos[[#This Row],[Data - Saída]],\"ym\")&\" \"&IF(DATEDIF(TB_MovimentaçãodeAtivos[[#This Row],[Data]],TB_MovimentaçãodeAtivos[[#This Row],[Data - Saída]],\"ym\")>1,\"meses\",\"mês\"))&IF(AND(OR(DATEDIF(TB_MovimentaçãodeAtivos[[#This Row],[Data]],TB_MovimentaçãodeAtivos[[#This Row],[Data - Saída]],\"y\")>0,DATEDIF(TB_MovimentaçãodeAtivos[[#This Row],[Data]],TB_MovimentaçãodeAtivos[[#This Row],[Data - Saída]],\"ym\")>0),DATEDIF(TB_MovimentaçãodeAtivos[[#This Row],[Data]],TB_MovimentaçãodeAtivos[[#This Row],[Data - Saída]],\"md\")>0),\" e \",\"\")&IF(DATEDIF(TB_MovimentaçãodeAtivos[[#This Row],[Data]],TB_MovimentaçãodeAtivos[[#This Row],[Data - Saída]],\"md\")=0,\"\",DATEDIF(TB_MovimentaçãodeAtivos[[#This Row],[Data]],TB_MovimentaçãodeAtivos[[#This Row],[Data - Saída]],\"md\")&\" \"&IF(DATEDIF(TB_MovimentaçãodeAtivos[[#This Row],[Data]],TB_MovimentaçãodeAtivos[[#This Row],[Data - Saída]],\"md\")>1,\"dias\",\"dia\")),\"-\")))","v":"2 dias"}]
[null,{"$f":"IFERROR(INDEX(#REF!,SMALL(IF(((#REF!=\"Pago\")*(#REF!=#REF!)*(#REF!=AnoReferencia_Matriz)),ROW(#REF!)-ROW(#REF!)),ROWS($1:2))),\"\")","v":""},44145,"PETR4","V",200,24.8,2.9,{"$f":"TB_MovimentaçãodeAtivos[[#This Row],[Qtde]]*TB_MovimentaçãodeAtivos[[#This Row],[Vlr Entrada]]","v":4960},null,{"$f":"TB_MovimentaçãodeAtivos[[#This Row],[Vlr Entrada]]*1.05","v":26.040000000000003},{"$f":"TB_MovimentaçãodeAtivos[[#This Row],[Vlr Entrada]]*0.95","v":23.56},null,null,null,{"$f":"TB_MovimentaçãodeAtivos[[#This Row],[Qtde]]*TB_MovimentaçãodeAtivos[[#This Row],[Valor - Saída]]","v":0},null,null,{"$f":"IF(OR(TB_MovimentaçãodeAtivos[[#This Row],[Data]]=\"\",TB_MovimentaçãodeAtivos[[#This Row],[Data]]=\"-\"),\"-\",IF(TB_MovimentaçãodeAtivos[[#This Row],[Data - Saída]]=TB_MovimentaçãodeAtivos[[#This Row],[Data]],\"-\",IFERROR(IF(DATEDIF(TB_MovimentaçãodeAtivos[[#This Row],[Data]],TB_MovimentaçãodeAtivos[[#This Row],[Data - Saída]],\"y\")=0,\"\",DATEDIF(TB_MovimentaçãodeAtivos[[#This Row],[Data]],TB_MovimentaçãodeAtivos[[#This Row],[Data - Saída]],\"y\")&\" \"&IF(DATEDIF(TB_MovimentaçãodeAtivos[[#This Row],[Data]],TB_MovimentaçãodeAtivos[[#This Row],[Data - Saída]],\"y\")>1,\"anos\",\"ano\"))&IF(AND(DATEDIF(TB_MovimentaçãodeAtivos[[#This Row],[Data]],TB_MovimentaçãodeAtivos[[#This Row],[Data - Saída]],\"y\")>0,DATEDIF(TB_MovimentaçãodeAtivos[[#This Row],[Data]],TB_MovimentaçãodeAtivos[[#This Row],[Data - Saída]],\"ym\")>0),IF(DATEDIF(TB_MovimentaçãodeAtivos[[#This Row],[Data]],TB_MovimentaçãodeAtivos[[#This Row],[Data - Saída]],\"md\")>0,\", \",\" e \"),\"\")&IF(DATEDIF(TB_MovimentaçãodeAtivos[[#This Row],[Data]],TB_MovimentaçãodeAtivos[[#This Row],[Data - Saída]],\"ym\")=0,\"\",DATEDIF(TB_MovimentaçãodeAtivos[[#This Row],[Data]],TB_MovimentaçãodeAtivos[[#This Row],[Data - Saída]],\"ym\")&\" \"&IF(DATEDIF(TB_MovimentaçãodeAtivos[[#This Row],[Data]],TB_MovimentaçãodeAtivos[[#This Row],[Data - Saída]],\"ym\")>1,\"meses\",\"mês\"))&IF(AND(OR(DATEDIF(TB_MovimentaçãodeAtivos[[#This Row],[Data]],TB_MovimentaçãodeAtivos[[#This Row],[Data - Saída]],\"y\")>0,DATEDIF(TB_MovimentaçãodeAtivos[[#This Row],[Data]],TB_MovimentaçãodeAtivos[[#This Row],[Data - Saída]],\"ym\")>0),DATEDIF(TB_MovimentaçãodeAtivos[[#This Row],[Data]],TB_MovimentaçãodeAtivos[[#This Row],[Data - Saída]],\"md\")>0),\" e \",\"\")&IF(DATEDIF(TB_MovimentaçãodeAtivos[[#This Row],[Data]],TB_MovimentaçãodeAtivos[[#This Row],[Data - Saída]],\"md\")=0,\"\",DATEDIF(TB_MovimentaçãodeAtivos[[#This Row],[Data]],TB_MovimentaçãodeAtivos[[#This Row],[Data - Saída]],\"md\")&\" \"&IF(DATEDIF(TB_MovimentaçãodeAtivos[[#This Row],[Data]],TB_MovimentaçãodeAtivos[[#This Row],[Data - Saída]],\"md\")>1,\"dias\",\"dia\")),\"-\")))","v":"-"}]
[null,{"$f":"IFERROR(INDEX(#REF!,SMALL(IF(((#REF!=\"Pago\")*(#REF!=#REF!)*(#REF!=AnoReferencia_Matriz)),ROW(#REF!)-ROW(#REF!)),ROWS($1:6))),\"\")","v":""},44150,"CIEL3","C",500,3.56,2.9,{"$f":"TB_MovimentaçãodeAtivos[[#This Row],[Qtde]]*TB_MovimentaçãodeAtivos[[#This Row],[Vlr Entrada]]","v":1780},null,{"$f":"TB_MovimentaçãodeAtivos[[#This Row],[Vlr Entrada]]*1.05","v":3.7380000000000004},{"$f":"TB_MovimentaçãodeAtivos[[#This Row],[Vlr Entrada]]*0.95","v":3.3819999999999997},null,null,null,{"$f":"TB_MovimentaçãodeAtivos[[#This Row],[Qtde]]*TB_MovimentaçãodeAtivos[[#This Row],[Valor - Saída]]","v":0},null,null,{"$f":"IF(OR(TB_MovimentaçãodeAtivos[[#This Row],[Data]]=\"\",TB_MovimentaçãodeAtivos[[#This Row],[Data]]=\"-\"),\"-\",IF(TB_MovimentaçãodeAtivos[[#This Row],[Data - Saída]]=TB_MovimentaçãodeAtivos[[#This Row],[Data]],\"-\",IFERROR(IF(DATEDIF(TB_MovimentaçãodeAtivos[[#This Row],[Data]],TB_MovimentaçãodeAtivos[[#This Row],[Data - Saída]],\"y\")=0,\"\",DATEDIF(TB_MovimentaçãodeAtivos[[#This Row],[Data]],TB_MovimentaçãodeAtivos[[#This Row],[Data - Saída]],\"y\")&\" \"&IF(DATEDIF(TB_MovimentaçãodeAtivos[[#This Row],[Data]],TB_MovimentaçãodeAtivos[[#This Row],[Data - Saída]],\"y\")>1,\"anos\",\"ano\"))&IF(AND(DATEDIF(TB_MovimentaçãodeAtivos[[#This Row],[Data]],TB_MovimentaçãodeAtivos[[#This Row],[Data - Saída]],\"y\")>0,DATEDIF(TB_MovimentaçãodeAtivos[[#This Row],[Data]],TB_MovimentaçãodeAtivos[[#This Row],[Data - Saída]],\"ym\")>0),IF(DATEDIF(TB_MovimentaçãodeAtivos[[#This Row],[Data]],TB_MovimentaçãodeAtivos[[#This Row],[Data - Saída]],\"md\")>0,\", \",\" e \"),\"\")&IF(DATEDIF(TB_MovimentaçãodeAtivos[[#This Row],[Data]],TB_MovimentaçãodeAtivos[[#This Row],[Data - Saída]],\"ym\")=0,\"\",DATEDIF(TB_MovimentaçãodeAtivos[[#This Row],[Data]],TB_MovimentaçãodeAtivos[[#This Row],[Data - Saída]],\"ym\")&\" \"&IF(DATEDIF(TB_MovimentaçãodeAtivos[[#This Row],[Data]],TB_MovimentaçãodeAtivos[[#This Row],[Data - Saída]],\"ym\")>1,\"meses\",\"mês\"))&IF(AND(OR(DATEDIF(TB_MovimentaçãodeAtivos[[#This Row],[Data]],TB_MovimentaçãodeAtivos[[#This Row],[Data - Saída]],\"y\")>0,DATEDIF(TB_MovimentaçãodeAtivos[[#This Row],[Data]],TB_MovimentaçãodeAtivos[[#This Row],[Data - Saída]],\"ym\")>0),DATEDIF(TB_MovimentaçãodeAtivos[[#This Row],[Data]],TB_MovimentaçãodeAtivos[[#This Row],[Data - Saída]],\"md\")>0),\" e \",\"\")&IF(DATEDIF(TB_MovimentaçãodeAtivos[[#This Row],[Data]],TB_MovimentaçãodeAtivos[[#This Row],[Data - Saída]],\"md\")=0,\"\",DATEDIF(TB_MovimentaçãodeAtivos[[#This Row],[Data]],TB_MovimentaçãodeAtivos[[#This Row],[Data - Saída]],\"md\")&\" \"&IF(DATEDIF(TB_MovimentaçãodeAtivos[[#This Row],[Data]],TB_MovimentaçãodeAtivos[[#This Row],[Data - Saída]],\"md\")>1,\"dias\",\"dia\")),\"-\")))","v":"-"}]
[null,{"$f":"IFERROR(INDEX(#REF!,SMALL(IF(((#REF!=\"Pago\")*(#REF!=#REF!)*(#REF!=AnoReferencia_Matriz)),ROW(#REF!)-ROW(#REF!)),ROWS($1:7))),\"\")","v":""},44147,"CIEL3","C",300,3.52,2.9,{"$f":"TB_MovimentaçãodeAtivos[[#This Row],[Qtde]]*TB_MovimentaçãodeAtivos[[#This Row],[Vlr Entrada]]","v":1056},null,{"$f":"TB_MovimentaçãodeAtivos[[#This Row],[Vlr Entrada]]*1.05","v":3.6960000000000002},{"$f":"TB_MovimentaçãodeAtivos[[#This Row],[Vlr Entrada]]*0.95","v":3.3439999999999999},44149,3.7,null,{"$f":"TB_MovimentaçãodeAtivos[[#This Row],[Qtde]]*TB_MovimentaçãodeAtivos[[#This Row],[Valor - Saída]]","v":1110},null,null,{"$f":"IF(OR(TB_MovimentaçãodeAtivos[[#This Row],[Data]]=\"\",TB_MovimentaçãodeAtivos[[#This Row],[Data]]=\"-\"),\"-\",IF(TB_MovimentaçãodeAtivos[[#This Row],[Data - Saída]]=TB_MovimentaçãodeAtivos[[#This Row],[Data]],\"-\",IFERROR(IF(DATEDIF(TB_MovimentaçãodeAtivos[[#This Row],[Data]],TB_MovimentaçãodeAtivos[[#This Row],[Data - Saída]],\"y\")=0,\"\",DATEDIF(TB_MovimentaçãodeAtivos[[#This Row],[Data]],TB_MovimentaçãodeAtivos[[#This Row],[Data - Saída]],\"y\")&\" \"&IF(DATEDIF(TB_MovimentaçãodeAtivos[[#This Row],[Data]],TB_MovimentaçãodeAtivos[[#This Row],[Data - Saída]],\"y\")>1,\"anos\",\"ano\"))&IF(AND(DATEDIF(TB_MovimentaçãodeAtivos[[#This Row],[Data]],TB_MovimentaçãodeAtivos[[#This Row],[Data - Saída]],\"y\")>0,DATEDIF(TB_MovimentaçãodeAtivos[[#This Row],[Data]],TB_MovimentaçãodeAtivos[[#This Row],[Data - Saída]],\"ym\")>0),IF(DATEDIF(TB_MovimentaçãodeAtivos[[#This Row],[Data]],TB_MovimentaçãodeAtivos[[#This Row],[Data - Saída]],\"md\")>0,\", \",\" e \"),\"\")&IF(DATEDIF(TB_MovimentaçãodeAtivos[[#This Row],[Data]],TB_MovimentaçãodeAtivos[[#This Row],[Data - Saída]],\"ym\")=0,\"\",DATEDIF(TB_MovimentaçãodeAtivos[[#This Row],[Data]],TB_MovimentaçãodeAtivos[[#This Row],[Data - Saída]],\"ym\")&\" \"&IF(DATEDIF(TB_MovimentaçãodeAtivos[[#This Row],[Data]],TB_MovimentaçãodeAtivos[[#This Row],[Data - Saída]],\"ym\")>1,\"meses\",\"mês\"))&IF(AND(OR(DATEDIF(TB_MovimentaçãodeAtivos[[#This Row],[Data]],TB_MovimentaçãodeAtivos[[#This Row],[Data - Saída]],\"y\")>0,DATEDIF(TB_MovimentaçãodeAtivos[[#This Row],[Data]],TB_MovimentaçãodeAtivos[[#This Row],[Data - Saída]],\"ym\")>0),DATEDIF(TB_MovimentaçãodeAtivos[[#This Row],[Data]],TB_MovimentaçãodeAtivos[[#This Row],[Data - Saída]],\"md\")>0),\" e \",\"\")&IF(DATEDIF(TB_MovimentaçãodeAtivos[[#This Row],[Data]],TB_MovimentaçãodeAtivos[[#This Row],[Data - Saída]],\"md\")=0,\"\",DATEDIF(TB_MovimentaçãodeAtivos[[#This Row],[Data]],TB_MovimentaçãodeAtivos[[#This Row],[Data - Saída]],\"md\")&\" \"&IF(DATEDIF(TB_MovimentaçãodeAtivos[[#This Row],[Data]],TB_MovimentaçãodeAtivos[[#This Row],[Data - Saída]],\"md\")>1,\"dias\",\"dia\")),\"-\")))","v":"2 dias"}]
[null,{"$f":"IFERROR(INDEX(#REF!,SMALL(IF(((#REF!=\"Pago\")*(#REF!=#REF!)*(#REF!=AnoReferencia_Matriz)),ROW(#REF!)-ROW(#REF!)),ROWS($1:8))),\"\")","v":""},44537,"IRBR3",null,null,null,null,{"$f":"TB_MovimentaçãodeAtivos[[#This Row],[Qtde]]*TB_MovimentaçãodeAtivos[[#This Row],[Vlr Entrada]]","v":0},null,{"$f":"TB_MovimentaçãodeAtivos[[#This Row],[Vlr Entrada]]*1.05","v":0},{"$f":"TB_MovimentaçãodeAtivos[[#This Row],[Vlr Entrada]]*0.95","v":0},null,null,null,{"$f":"TB_MovimentaçãodeAtivos[[#This Row],[Qtde]]*TB_MovimentaçãodeAtivos[[#This Row],[Valor - Saída]]","v":0},null,null,{"$f":"IF(OR(TB_MovimentaçãodeAtivos[[#This Row],[Data]]=\"\",TB_MovimentaçãodeAtivos[[#This Row],[Data]]=\"-\"),\"-\",IF(TB_MovimentaçãodeAtivos[[#This Row],[Data - Saída]]=TB_MovimentaçãodeAtivos[[#This Row],[Data]],\"-\",IFERROR(IF(DATEDIF(TB_MovimentaçãodeAtivos[[#This Row],[Data]],TB_MovimentaçãodeAtivos[[#This Row],[Data - Saída]],\"y\")=0,\"\",DATEDIF(TB_MovimentaçãodeAtivos[[#This Row],[Data]],TB_MovimentaçãodeAtivos[[#This Row],[Data - Saída]],\"y\")&\" \"&IF(DATEDIF(TB_MovimentaçãodeAtivos[[#This Row],[Data]],TB_MovimentaçãodeAtivos[[#This Row],[Data - Saída]],\"y\")>1,\"anos\",\"ano\"))&IF(AND(DATEDIF(TB_MovimentaçãodeAtivos[[#This Row],[Data]],TB_MovimentaçãodeAtivos[[#This Row],[Data - Saída]],\"y\")>0,DATEDIF(TB_MovimentaçãodeAtivos[[#This Row],[Data]],TB_MovimentaçãodeAtivos[[#This Row],[Data - Saída]],\"ym\")>0),IF(DATEDIF(TB_MovimentaçãodeAtivos[[#This Row],[Data]],TB_MovimentaçãodeAtivos[[#This Row],[Data - Saída]],\"md\")>0,\", \",\" e \"),\"\")&IF(DATEDIF(TB_MovimentaçãodeAtivos[[#This Row],[Data]],TB_MovimentaçãodeAtivos[[#This Row],[Data - Saída]],\"ym\")=0,\"\",DATEDIF(TB_MovimentaçãodeAtivos[[#This Row],[Data]],TB_MovimentaçãodeAtivos[[#This Row],[Data - Saída]],\"ym\")&\" \"&IF(DATEDIF(TB_MovimentaçãodeAtivos[[#This Row],[Data]],TB_MovimentaçãodeAtivos[[#This Row],[Data - Saída]],\"ym\")>1,\"meses\",\"mês\"))&IF(AND(OR(DATEDIF(TB_MovimentaçãodeAtivos[[#This Row],[Data]],TB_MovimentaçãodeAtivos[[#This Row],[Data - Saída]],\"y\")>0,DATEDIF(TB_MovimentaçãodeAtivos[[#This Row],[Data]],TB_MovimentaçãodeAtivos[[#This Row],[Data - Saída]],\"ym\")>0),DATEDIF(TB_MovimentaçãodeAtivos[[#This Row],[Data]],TB_MovimentaçãodeAtivos[[#This Row],[Data - Saída]],\"md\")>0),\" e \",\"\")&IF(DATEDIF(TB_MovimentaçãodeAtivos[[#This Row],[Data]],TB_MovimentaçãodeAtivos[[#This Row],[Data - Saída]],\"md\")=0,\"\",DATEDIF(TB_MovimentaçãodeAtivos[[#This Row],[Data]],TB_MovimentaçãodeAtivos[[#This Row],[Data - Saída]],\"md\")&\" \"&IF(DATEDIF(TB_MovimentaçãodeAtivos[[#This Row],[Data]],TB_MovimentaçãodeAtivos[[#This Row],[Data - Saída]],\"md\")>1,\"dias\",\"dia\")),\"-\")))","v":"-"}]
[null,{"$f":"IFERROR(INDEX(#REF!,SMALL(IF(((#REF!=\"Pago\")*(#REF!=#REF!)*(#REF!=AnoReferencia_Matriz)),ROW(#REF!)-ROW(#REF!)),ROWS($1:8))),\"\")","v":""},44091,"NTCO2","C",200,49,2.9,{"$f":"TB_MovimentaçãodeAtivos[[#This Row],[Qtde]]*TB_MovimentaçãodeAtivos[[#This Row],[Vlr Entrada]]","v":9800},null,{"$f":"TB_MovimentaçãodeAtivos[[#This Row],[Vlr Entrada]]*1.05","v":51.45},{"$f":"TB_MovimentaçãodeAtivos[[#This Row],[Vlr Entrada]]*0.95","v":46.55},44094,49.12,null,{"$f":"TB_MovimentaçãodeAtivos[[#This Row],[Qtde]]*TB_MovimentaçãodeAtivos[[#This Row],[Valor - Saída]]","v":9824},null,null,{"$f":"IF(OR(TB_MovimentaçãodeAtivos[[#This Row],[Data]]=\"\",TB_MovimentaçãodeAtivos[[#This Row],[Data]]=\"-\"),\"-\",IF(TB_MovimentaçãodeAtivos[[#This Row],[Data - Saída]]=TB_MovimentaçãodeAtivos[[#This Row],[Data]],\"-\",IFERROR(IF(DATEDIF(TB_MovimentaçãodeAtivos[[#This Row],[Data]],TB_MovimentaçãodeAtivos[[#This Row],[Data - Saída]],\"y\")=0,\"\",DATEDIF(TB_MovimentaçãodeAtivos[[#This Row],[Data]],TB_MovimentaçãodeAtivos[[#This Row],[Data - Saída]],\"y\")&\" \"&IF(DATEDIF(TB_MovimentaçãodeAtivos[[#This Row],[Data]],TB_MovimentaçãodeAtivos[[#This Row],[Data - Saída]],\"y\")>1,\"anos\",\"ano\"))&IF(AND(DATEDIF(TB_MovimentaçãodeAtivos[[#This Row],[Data]],TB_MovimentaçãodeAtivos[[#This Row],[Data - Saída]],\"y\")>0,DATEDIF(TB_MovimentaçãodeAtivos[[#This Row],[Data]],TB_MovimentaçãodeAtivos[[#This Row],[Data - Saída]],\"ym\")>0),IF(DATEDIF(TB_MovimentaçãodeAtivos[[#This Row],[Data]],TB_MovimentaçãodeAtivos[[#This Row],[Data - Saída]],\"md\")>0,\", \",\" e \"),\"\")&IF(DATEDIF(TB_MovimentaçãodeAtivos[[#This Row],[Data]],TB_MovimentaçãodeAtivos[[#This Row],[Data - Saída]],\"ym\")=0,\"\",DATEDIF(TB_MovimentaçãodeAtivos[[#This Row],[Data]],TB_MovimentaçãodeAtivos[[#This Row],[Data - Saída]],\"ym\")&\" \"&IF(DATEDIF(TB_MovimentaçãodeAtivos[[#This Row],[Data]],TB_MovimentaçãodeAtivos[[#This Row],[Data - Saída]],\"ym\")>1,\"meses\",\"mês\"))&IF(AND(OR(DATEDIF(TB_MovimentaçãodeAtivos[[#This Row],[Data]],TB_MovimentaçãodeAtivos[[#This Row],[Data - Saída]],\"y\")>0,DATEDIF(TB_MovimentaçãodeAtivos[[#This Row],[Data]],TB_MovimentaçãodeAtivos[[#This Row],[Data - Saída]],\"ym\")>0),DATEDIF(TB_MovimentaçãodeAtivos[[#This Row],[Data]],TB_MovimentaçãodeAtivos[[#This Row],[Data - Saída]],\"md\")>0),\" e \",\"\")&IF(DATEDIF(TB_MovimentaçãodeAtivos[[#This Row],[Data]],TB_MovimentaçãodeAtivos[[#This Row],[Data - Saída]],\"md\")=0,\"\",DATEDIF(TB_MovimentaçãodeAtivos[[#This Row],[Data]],TB_MovimentaçãodeAtivos[[#This Row],[Data - Saída]],\"md\")&\" \"&IF(DATEDIF(TB_MovimentaçãodeAtivos[[#This Row],[Data]],TB_MovimentaçãodeAtivos[[#This Row],[Data - Saída]],\"md\")>1,\"dias\",\"dia\")),\"-\")))","v":"3 dias"}]
[null,{"$f":"IFERROR(INDEX(#REF!,SMALL(IF(((#REF!=\"Pago\")*(#REF!=#REF!)*(#REF!=AnoReferencia_Matriz)),ROW(#REF!)-ROW(#REF!)),ROWS($1:8))),\"\")","v":""},44084,"NTCO2","V",100,48.49,2.9,{"$f":"TB_MovimentaçãodeAtivos[[#This Row],[Qtde]]*TB_MovimentaçãodeAtivos[[#This Row],[Vlr Entrada]]","v":4849},null,{"$f":"TB_MovimentaçãodeAtivos[[#This Row],[Vlr Entrada]]*1.05","v":50.914500000000004},{"$f":"TB_MovimentaçãodeAtivos[[#This Row],[Vlr Entrada]]*0.95","v":46.0655},44088,49.21,null,{"$f":"TB_MovimentaçãodeAtivos[[#This Row],[Qtde]]*TB_MovimentaçãodeAtivos[[#This Row],[Valor - Saída]]","v":4921},null,null,{"$f":"IF(OR(TB_MovimentaçãodeAtivos[[#This Row],[Data]]=\"\",TB_MovimentaçãodeAtivos[[#This Row],[Data]]=\"-\"),\"-\",IF(TB_MovimentaçãodeAtivos[[#This Row],[Data - Saída]]=TB_MovimentaçãodeAtivos[[#This Row],[Data]],\"-\",IFERROR(IF(DATEDIF(TB_MovimentaçãodeAtivos[[#This Row],[Data]],TB_MovimentaçãodeAtivos[[#This Row],[Data - Saída]],\"y\")=0,\"\",DATEDIF(TB_MovimentaçãodeAtivos[[#This Row],[Data]],TB_MovimentaçãodeAtivos[[#This Row],[Data - Saída]],\"y\")&\" \"&IF(DATEDIF(TB_MovimentaçãodeAtivos[[#This Row],[Data]],TB_MovimentaçãodeAtivos[[#This Row],[Data - Saída]],\"y\")>1,\"anos\",\"ano\"))&IF(AND(DATEDIF(TB_MovimentaçãodeAtivos[[#This Row],[Data]],TB_MovimentaçãodeAtivos[[#This Row],[Data - Saída]],\"y\")>0,DATEDIF(TB_MovimentaçãodeAtivos[[#This Row],[Data]],TB_MovimentaçãodeAtivos[[#This Row],[Data - Saída]],\"ym\")>0),IF(DATEDIF(TB_MovimentaçãodeAtivos[[#This Row],[Data]],TB_MovimentaçãodeAtivos[[#This Row],[Data - Saída]],\"md\")>0,\", \",\" e \"),\"\")&IF(DATEDIF(TB_MovimentaçãodeAtivos[[#This Row],[Data]],TB_MovimentaçãodeAtivos[[#This Row],[Data - Saída]],\"ym\")=0,\"\",DATEDIF(TB_MovimentaçãodeAtivos[[#This Row],[Data]],TB_MovimentaçãodeAtivos[[#This Row],[Data - Saída]],\"ym\")&\" \"&IF(DATEDIF(TB_MovimentaçãodeAtivos[[#This Row],[Data]],TB_MovimentaçãodeAtivos[[#This Row],[Data - Saída]],\"ym\")>1,\"meses\",\"mês\"))&IF(AND(OR(DATEDIF(TB_MovimentaçãodeAtivos[[#This Row],[Data]],TB_MovimentaçãodeAtivos[[#This Row],[Data - Saída]],\"y\")>0,DATEDIF(TB_MovimentaçãodeAtivos[[#This Row],[Data]],TB_MovimentaçãodeAtivos[[#This Row],[Data - Saída]],\"ym\")>0),DATEDIF(TB_MovimentaçãodeAtivos[[#This Row],[Data]],TB_MovimentaçãodeAtivos[[#This Row],[Data - Saída]],\"md\")>0),\" e \",\"\")&IF(DATEDIF(TB_MovimentaçãodeAtivos[[#This Row],[Data]],TB_MovimentaçãodeAtivos[[#This Row],[Data - Saída]],\"md\")=0,\"\",DATEDIF(TB_MovimentaçãodeAtivos[[#This Row],[Data]],TB_MovimentaçãodeAtivos[[#This Row],[Data - Saída]],\"md\")&\" \"&IF(DATEDIF(TB_MovimentaçãodeAtivos[[#This Row],[Data]],TB_MovimentaçãodeAtivos[[#This Row],[Data - Saída]],\"md\")>1,\"dias\",\"dia\")),\"-\")))","v":"4 dias"}]
[null,{"$f":"IFERROR(INDEX(#REF!,SMALL(IF(((#REF!=\"Pago\")*(#REF!=#REF!)*(#REF!=AnoReferencia_Matriz)),ROW(#REF!)-ROW(#REF!)),ROWS($1:8))),\"\")","v":""},44200,"CIEL3","C",600,4.04,null,{"$f":"TB_MovimentaçãodeAtivos[[#This Row],[Qtde]]*TB_MovimentaçãodeAtivos[[#This Row],[Vlr Entrada]]","v":2424},null,{"$f":"TB_MovimentaçãodeAtivos[[#This Row],[Vlr Entrada]]*1.05","v":4.242},{"$f":"TB_MovimentaçãodeAtivos[[#This Row],[Vlr Entrada]]*0.95","v":3.8379999999999996},null,null,null,{"$f":"TB_MovimentaçãodeAtivos[[#This Row],[Qtde]]*TB_MovimentaçãodeAtivos[[#This Row],[Valor - Saída]]","v":0},null,null,{"$f":"IF(OR(TB_MovimentaçãodeAtivos[[#This Row],[Data]]=\"\",TB_MovimentaçãodeAtivos[[#This Row],[Data]]=\"-\"),\"-\",IF(TB_MovimentaçãodeAtivos[[#This Row],[Data - Saída]]=TB_MovimentaçãodeAtivos[[#This Row],[Data]],\"-\",IFERROR(IF(DATEDIF(TB_MovimentaçãodeAtivos[[#This Row],[Data]],TB_MovimentaçãodeAtivos[[#This Row],[Data - Saída]],\"y\")=0,\"\",DATEDIF(TB_MovimentaçãodeAtivos[[#This Row],[Data]],TB_MovimentaçãodeAtivos[[#This Row],[Data - Saída]],\"y\")&\" \"&IF(DATEDIF(TB_MovimentaçãodeAtivos[[#This Row],[Data]],TB_MovimentaçãodeAtivos[[#This Row],[Data - Saída]],\"y\")>1,\"anos\",\"ano\"))&IF(AND(DATEDIF(TB_MovimentaçãodeAtivos[[#This Row],[Data]],TB_MovimentaçãodeAtivos[[#This Row],[Data - Saída]],\"y\")>0,DATEDIF(TB_MovimentaçãodeAtivos[[#This Row],[Data]],TB_MovimentaçãodeAtivos[[#This Row],[Data - Saída]],\"ym\")>0),IF(DATEDIF(TB_MovimentaçãodeAtivos[[#This Row],[Data]],TB_MovimentaçãodeAtivos[[#This Row],[Data - Saída]],\"md\")>0,\", \",\" e \"),\"\")&IF(DATEDIF(TB_MovimentaçãodeAtivos[[#This Row],[Data]],TB_MovimentaçãodeAtivos[[#This Row],[Data - Saída]],\"ym\")=0,\"\",DATEDIF(TB_MovimentaçãodeAtivos[[#This Row],[Data]],TB_MovimentaçãodeAtivos[[#This Row],[Data - Saída]],\"ym\")&\" \"&IF(DATEDIF(TB_MovimentaçãodeAtivos[[#This Row],[Data]],TB_MovimentaçãodeAtivos[[#This Row],[Data - Saída]],\"ym\")>1,\"meses\",\"mês\"))&IF(AND(OR(DATEDIF(TB_MovimentaçãodeAtivos[[#This Row],[Data]],TB_MovimentaçãodeAtivos[[#This Row],[Data - Saída]],\"y\")>0,DATEDIF(TB_MovimentaçãodeAtivos[[#This Row],[Data]],TB_MovimentaçãodeAtivos[[#This Row],[Data - Saída]],\"ym\")>0),DATEDIF(TB_MovimentaçãodeAtivos[[#This Row],[Data]],TB_MovimentaçãodeAtivos[[#This Row],[Data - Saída]],\"md\")>0),\" e \",\"\")&IF(DATEDIF(TB_MovimentaçãodeAtivos[[#This Row],[Data]],TB_MovimentaçãodeAtivos[[#This Row],[Data - Saída]],\"md\")=0,\"\",DATEDIF(TB_MovimentaçãodeAtivos[[#This Row],[Data]],TB_MovimentaçãodeAtivos[[#This Row],[Data - Saída]],\"md\")&\" \"&IF(DATEDIF(TB_MovimentaçãodeAtivos[[#This Row],[Data]],TB_MovimentaçãodeAtivos[[#This Row],[Data - Saída]],\"md\")>1,\"dias\",\"dia\")),\"-\")))","v":"-"}]
[null,{"$f":"IFERROR(INDEX(#REF!,SMALL(IF(((#REF!=\"Pago\")*(#REF!=#REF!)*(#REF!=AnoReferencia_Matriz)),ROW(#REF!)-ROW(#REF!)),ROWS($1:8))),\"\")","v":""},44168,"VIVA3","C",300,25.9,2.9,{"$f":"TB_MovimentaçãodeAtivos[[#This Row],[Qtde]]*TB_MovimentaçãodeAtivos[[#This Row],[Vlr Entrada]]","v":7770},null,{"$f":"TB_MovimentaçãodeAtivos[[#This Row],[Vlr Entrada]]*1.05","v":27.195},{"$f":"TB_MovimentaçãodeAtivos[[#This Row],[Vlr Entrada]]*0.95","v":24.604999999999997},null,null,null,{"$f":"TB_MovimentaçãodeAtivos[[#This Row],[Qtde]]*TB_MovimentaçãodeAtivos[[#This Row],[Valor - Saída]]","v":0},null,null,{"$f":"IF(OR(TB_MovimentaçãodeAtivos[[#This Row],[Data]]=\"\",TB_MovimentaçãodeAtivos[[#This Row],[Data]]=\"-\"),\"-\",IF(TB_MovimentaçãodeAtivos[[#This Row],[Data - Saída]]=TB_MovimentaçãodeAtivos[[#This Row],[Data]],\"-\",IFERROR(IF(DATEDIF(TB_MovimentaçãodeAtivos[[#This Row],[Data]],TB_MovimentaçãodeAtivos[[#This Row],[Data - Saída]],\"y\")=0,\"\",DATEDIF(TB_MovimentaçãodeAtivos[[#This Row],[Data]],TB_MovimentaçãodeAtivos[[#This Row],[Data - Saída]],\"y\")&\" \"&IF(DATEDIF(TB_MovimentaçãodeAtivos[[#This Row],[Data]],TB_MovimentaçãodeAtivos[[#This Row],[Data - Saída]],\"y\")>1,\"anos\",\"ano\"))&IF(AND(DATEDIF(TB_MovimentaçãodeAtivos[[#This Row],[Data]],TB_MovimentaçãodeAtivos[[#This Row],[Data - Saída]],\"y\")>0,DATEDIF(TB_MovimentaçãodeAtivos[[#This Row],[Data]],TB_MovimentaçãodeAtivos[[#This Row],[Data - Saída]],\"ym\")>0),IF(DATEDIF(TB_MovimentaçãodeAtivos[[#This Row],[Data]],TB_MovimentaçãodeAtivos[[#This Row],[Data - Saída]],\"md\")>0,\", \",\" e \"),\"\")&IF(DATEDIF(TB_MovimentaçãodeAtivos[[#This Row],[Data]],TB_MovimentaçãodeAtivos[[#This Row],[Data - Saída]],\"ym\")=0,\"\",DATEDIF(TB_MovimentaçãodeAtivos[[#This Row],[Data]],TB_MovimentaçãodeAtivos[[#This Row],[Data - Saída]],\"ym\")&\" \"&IF(DATEDIF(TB_MovimentaçãodeAtivos[[#This Row],[Data]],TB_MovimentaçãodeAtivos[[#This Row],[Data - Saída]],\"ym\")>1,\"meses\",\"mês\"))&IF(AND(OR(DATEDIF(TB_MovimentaçãodeAtivos[[#This Row],[Data]],TB_MovimentaçãodeAtivos[[#This Row],[Data - Saída]],\"y\")>0,DATEDIF(TB_MovimentaçãodeAtivos[[#This Row],[Data]],TB_MovimentaçãodeAtivos[[#This Row],[Data - Saída]],\"ym\")>0),DATEDIF(TB_MovimentaçãodeAtivos[[#This Row],[Data]],TB_MovimentaçãodeAtivos[[#This Row],[Data - Saída]],\"md\")>0),\" e \",\"\")&IF(DATEDIF(TB_MovimentaçãodeAtivos[[#This Row],[Data]],TB_MovimentaçãodeAtivos[[#This Row],[Data - Saída]],\"md\")=0,\"\",DATEDIF(TB_MovimentaçãodeAtivos[[#This Row],[Data]],TB_MovimentaçãodeAtivos[[#This Row],[Data - Saída]],\"md\")&\" \"&IF(DATEDIF(TB_MovimentaçãodeAtivos[[#This Row],[Data]],TB_MovimentaçãodeAtivos[[#This Row],[Data - Saída]],\"md\")>1,\"dias\",\"dia\")),\"-\")))","v":"-"}]